bitfinex-derivatives/quotes_BTCF0:USTF0_20210404
["timestamp","ask_amount","ask_price","bid_price","bid_amount"]
[1617500460772,0.55820434,56963.0,56962.0,3.107]
[1617500461973,0.55820434,56963.0,56962.0,3.25445]
[1617500463175,0.55820434,56963.0,56962.0,0.14745]
[1617500463374,0.55820434,56963.0,56940.0,1.456]
[1617500463375,1.71197434,56963.0,56954.0,3.86610755]
[1617500463776,0.45229558,56959.0,56954.0,3.4347]
[1617500464976,0.10725655,56955.0,56954.0,3.54195655]
[1617500466181,0.22253655,56955.0,56954.0,3.54195655]
[1617500472787,0.10725655,56955.0,56954.0,3.54195655]
[1617500476996,0.10725655,56955.0,56954.0,3.97547427]
[1617500479601,0.10725655,56955.0,56954.0,3.54195655]
[1617500479799,0.10725655,56955.0,56954.0,0.10725655]
[1617500480600,0.10725655,56955.0,56954.0,3.21525655]
[1617500480802,0.10725655,56955.0,56954.0,3.64923673]
[1617500481102,0.10725655,56955.0,56954.0,3.74186999]
[1617500481801,0.10725655,56955.0,56954.0,3.79446999]
[1617500482401,0.10725655,56955.0,56954.0,3.74186999]
[1617500483605,0.10725655,56955.0,56954.0,0.63386999]
[1617500484003,0.10725655,56955.0,56954.0,0.54123673]
[1617500486906,0.10725655,56955.0,56954.0,0.10725655]
[1617500488610,0.10725655,56955.0,56954.0,0.54341482]
[1617500489612,0.10725655,56955.0,56954.0,0.10725655]
[1617500491518,0.10725655,56955.0,56954.0,0.54455665]
[1617500495124,0.10725655,56955.0,56954.0,0.4373001]
[1617500496531,0.10725655,56955.0,56953.0,0.4375219]
[1617500498430,0.55980412,56955.0,56952.0,0.43798733]
[1617500499230,1.0,56954.0,56952.0,0.43798733]
[1617500500230,0.55980412,56955.0,56952.0,0.43798733]
[1617500500630,0.45255165,56954.0,56952.0,0.43798733]
[1617500501032,0.55980131,56955.0,56952.0,0.43798733]
[1617500501835,0.45255232,56954.0,56952.0,0.43798733]
[1617500502432,1.0,56953.0,56952.0,0.43798733]
[1617500502633,3.7977,56953.0,56951.0,0.43782011]
[1617500502934,4.62040473,56953.0,56940.0,0.456]
[1617500503134,0.10725655,56941.0,56940.0,0.456]
[1617500503335,0.22089655,56941.0,56940.0,0.456]
[1617500503548,0.22089655,56941.0,56940.0,3.6488]
[1617500503733,0.37024511,56942.0,56940.0,4.6488]
[1617500503935,0.37023397,56943.0,56940.0,4.77139]
[1617500504135,0.37023397,56943.0,56941.0,1.0]
[1617500504337,0.45246266,56951.0,56942.0,0.49750455]
[1617500505139,0.45246266,56951.0,56950.0,0.10725655]
[1617500505551,1.4657,56968.0,56950.0,0.10725655]
[1617500505552,0.45267374,56956.0,56950.0,0.54581478]
[1617500505756,0.45267374,56956.0,56950.0,1.54581478]
[1617500505948,0.45265623,56959.0,56955.0,0.43844062]
[1617500506156,0.45265623,56959.0,56955.0,1.57220062]
[1617500506348,0.45265623,56959.0,56958.0,1.0]
[1617500506546,0.45264175,56961.0,56958.0,5.09642006]
[1617500506739,0.45264175,56961.0,56959.0,1.0]
[1617500506960,0.45263742,56960.0,56959.0,0.53083238]
[1617500507141,0.45263742,56960.0,56959.0,0.63808893]
[1617500507337,0.45264181,56962.0,56959.0,1.63808893]
[1617500507639,0.45263499,56963.0,56959.0,1.63808893]
[1617500507837,0.45263499,56963.0,56960.0,1.0]
[1617500508037,0.4526344,56964.0,56962.0,0.43812332]
[1617500509540,0.4526344,56964.0,56963.0,0.43816762]
[1617500509937,0.4657,56968.0,56963.0,0.43816762]
[1617500509938,0.45262704,56965.0,56963.0,0.43816762]
[1617500510338,0.45262704,56965.0,56964.0,0.43767939]
[1617500510941,0.91829682,56968.0,56964.0,0.43767939]
[1617500511140,0.91829682,56968.0,56967.0,0.10725655]
[1617500511341,0.91829682,56968.0,56967.0,0.24167655]
[1617500511742,0.91829682,56968.0,56967.0,4.94253652]
[1617500511743,0.4657,56968.0,56967.0,4.94253652]
[1617500512144,0.4657,56968.0,56967.0,5.03514479]
[1617500513043,0.4657,56968.0,56967.0,5.53163133]
[1617500513544,0.4657,56968.0,56967.0,5.03514479]
[1617500516144,0.4657,56968.0,56967.0,6.53514479]
[1617500517148,0.4657,56968.0,56967.0,2.27124479]
[1617500517348,0.4657,56968.0,56967.0,3.27124479]
[1617500517749,0.4657,56968.0,56967.0,2.74167655]
[1617500517950,0.45067104,56983.0,56967.0,1.74167655]
[1617500518149,0.45067104,56983.0,56982.0,2.9589]
[1617500518450,0.45067132,56986.0,56982.0,3.1271]
[1617500518649,0.45067132,56986.0,56982.0,4.1271]
[1617500518849,0.45067132,56986.0,56985.0,1.0]
[1617500519049,0.45065643,56988.0,56985.0,1.0]
[1617500519249,0.45065643,56988.0,56987.0,0.10725655]
[1617500519850,0.45065522,56989.0,56987.0,0.10725655]
[1617500520452,0.45063566,56988.0,56987.0,0.10725655]
[1617500520652,0.45063142,56989.0,56987.0,0.10725655]
[1617500521253,0.45062891,56990.0,56987.0,0.10725655]
[1617500522755,0.45062891,56990.0,56987.0,1.10725655]
[1617500522956,0.10725655,57000.0,56987.0,1.10725655]
[1617500522957,0.45061806,56991.0,56987.0,1.10725655]
[1617500523758,0.45061255,56992.0,56987.0,0.10725655]
[1617500524159,0.36870323,56989.0,56987.0,0.10725655]
[1617500524559,0.36870323,56989.0,56987.0,1.10725655]
[1617500524762,0.43042855,56991.0,56987.0,1.10725655]
[1617500524961,0.36869997,56990.0,56987.0,1.10725655]
[1617500525163,0.36869997,56990.0,56988.0,1.0]
[1617500525361,0.36870352,56991.0,56988.0,1.0]
[1617500525561,0.36870352,56991.0,56989.0,1.0]
[1617500525761,0.36870352,56991.0,56987.0,0.10725655]
[1617500525962,0.36870289,56990.0,56989.0,1.0]
[1617500526161,0.36870289,56990.0,56988.0,1.0]
[1617500526362,0.55787066,56992.0,56987.0,1.10725655]
[1617500526561,0.55787066,56992.0,56987.0,0.10725655]
[1617500526764,0.36870057,56989.0,56988.0,1.0]
[1617500527461,0.36870057,56989.0,56987.0,0.10725655]
[1617500527862,0.36870057,56989.0,56988.0,1.0]
[1617500528062,0.4506071,56993.0,56988.0,1.0]
[1617500528463,0.4506071,56993.0,56990.0,1.0]
[1617500528964,0.06172463,57004.0,56990.0,1.0]
[1617500528965,0.36846043,56991.0,56990.0,1.0]
[1617500529464,0.10725655,56993.0,56990.0,1.0]
[1617500529665,0.36746668,56994.0,56990.0,1.0]
[1617500531265,0.36746668,56994.0,56993.0,0.10725655]
[1617500534166,0.36746698,56995.0,56993.0,0.10725655]
[1617500535968,0.06172448,56997.0,56993.0,0.10725655]
[1617500535969,0.36746945,56994.0,56993.0,0.10725655]
[1617500536769,0.36746873,56995.0,56993.0,0.10725655]
[1617500537373,0.367469,56994.0,56993.0,0.10725655]
[1617500537772,0.36746456,56995.0,56993.0,0.10725655]
[1617500538173,0.47469807,56998.0,56993.0,0.10725655]
[1617500538775,0.47469807,56998.0,56994.0,1.0]
[1617500538975,0.47469807,56998.0,56994.0,1.10405]
[1617500539175,0.47469807,56998.0,56994.0,0.10405]
[1617500539976,0.10725655,56998.0,56994.0,1.10405]
[1617500540676,0.10725655,56998.0,56994.0,0.10405]
[1617500541884,0.36690946,57001.0,56996.0,1.0]
[1617500542098,0.36690946,57001.0,56997.0,1.0]
[1617500542287,0.36690946,57001.0,56994.0,0.10405]
[1617500542288,0.4906,57005.0,57000.0,2.5671]
[1617500542492,0.4906,57005.0,57000.0,3.5671]
[1617500542685,0.4906,57005.0,57004.0,1.0]
[1617500543285,0.4906,57005.0,57004.0,1.10725655]
[1617500544084,0.36687144,57009.0,57004.0,1.10725655]
[1617500544485,0.4863,57032.0,57008.0,1.0]
[1617500544486,0.36686522,57011.0,57008.0,1.0]
[1617500544685,0.36686522,57011.0,57008.0,1.13364]
[1617500544884,0.36686522,57011.0,57008.0,0.13364]
[1617500545285,0.36686522,57011.0,57010.0,1.10725655]
[1617500545686,0.36685684,57012.0,57010.0,1.10725655]
[1617500546090,0.36685684,57012.0,57010.0,0.10725655]
[1617500546387,0.36685684,57012.0,57011.0,1.0]
[1617500546589,0.36685684,57012.0,57010.0,0.10725655]
[1617500547589,0.36685684,57012.0,57011.0,1.0]
[1617500548991,0.36685684,57012.0,57010.0,0.10725655]
[1617500550695,0.36685684,57012.0,57011.0,1.0]
[1617500550895,0.36684746,57013.0,57011.0,1.13288]
[1617500551297,0.36692013,57012.0,57011.0,0.13288]
[1617500551899,0.36657853,57014.0,57011.0,1.13288]
[1617500552296,0.36657577,57016.0,57013.0,1.0]
[1617500552696,0.36657577,57016.0,57012.0,1.0]
[1617500552896,0.44801443,57020.0,57011.0,0.13288]
[1617500552897,0.36657641,57015.0,57011.0,0.13288]
[1617500553100,0.36657641,57015.0,57010.0,0.10725655]
[1617500553299,0.36657336,57014.0,57010.0,0.10725655]
[1617500553698,0.36657371,57015.0,57010.0,0.10725655]
[1617500554697,0.36657341,57014.0,57010.0,0.10725655]
[1617500557500,0.36657341,57014.0,57010.0,1.10725655]
[1617500558302,0.36657469,57013.0,57010.0,0.10725655]
[1617500559206,0.36657852,57014.0,57010.0,0.10725655]
[1617500559803,0.36657869,57013.0,57010.0,0.10725655]
[1617500560903,0.36657869,57013.0,57010.0,1.10725655]
[1617500561808,0.36657801,57014.0,57010.0,0.10725655]
[1617500562205,0.81784919,57011.0,57010.0,1.10725655]
[1617500563607,0.81784919,57011.0,57010.0,0.10725655]
[1617500564409,4.51004919,57011.0,56990.0,1.0]
[1617500564808,0.36802255,57001.0,56982.0,1.0]
[1617500565008,0.53790255,57001.0,56978.0,4.7865]
[1617500565209,0.36804501,56999.0,56978.0,4.7865]
[1617500565426,0.36804501,56999.0,56991.0,0.10725655]
[1617500565820,0.36808621,56993.0,56991.0,0.10725655]
[1617500566221,0.44986043,56998.0,56991.0,0.10725655]
[1617500566222,0.3680761,56994.0,56991.0,0.10725655]
[1617500566624,0.36807159,56995.0,56991.0,0.10725655]
[1617500567414,0.47532814,56995.0,56991.0,0.10725655]
[1617500567615,0.10725655,56995.0,56991.0,0.10725655]
[1617500570717,0.47533621,56995.0,56991.0,0.10725655]
[1617500572722,3.1566,56992.0,56972.0,1.49761047]
[1617500572924,3.52469072,56992.0,56972.0,1.0]
[1617500573323,3.52469072,56992.0,56973.0,1.0]
[1617500573324,3.97552383,56992.0,56973.0,1.0]
[1617500573523,3.97552383,56992.0,56990.0,0.10725655]
[1617500573724,0.43203672,56991.0,56990.0,0.10725655]
[1617500574124,0.88143754,56991.0,56990.0,0.10725655]
[1617500575028,0.36888335,56991.0,56990.0,0.10725655]
[1617500575227,0.36888335,56991.0,56990.0,3.58615655]
[1617500575427,0.36888335,56991.0,56990.0,0.10725655]
[1617500575428,0.53785855,56991.0,56990.0,0.10725655]
[1617500576028,4.20505855,56991.0,56990.0,0.10725655]
[1617500576831,5.02622047,56991.0,56990.0,0.10725655]
[1617500577231,1.35902047,56991.0,56990.0,0.10725655]
[1617500577833,0.98869459,56991.0,56990.0,0.10725655]
[1617500578234,0.98869459,56991.0,56990.0,3.34015655]
[1617500581037,0.98869459,56991.0,56972.0,1.0]
[1617500581237,3.4311,56984.0,56969.0,0.49937277]
[1617500581437,3.57108,56984.0,56969.0,0.49937277]
[1617500581637,4.93027657,56984.0,56974.0,0.10725655]
[1617500584739,4.55989961,56984.0,56974.0,0.10725655]
[1617500587946,6.05989961,56984.0,56962.0,1.0]
[1617500588162,1.36863647,56975.0,56950.0,0.50112056]
[1617500588357,1.5,56974.0,56950.0,0.50112056]
[1617500588544,1.0,56964.0,56950.0,0.50112056]
[1617500588754,3.7923,56951.0,56944.0,0.50188631]
[1617500588959,3.9075,56951.0,56944.0,0.50188631]
[1617500589156,3.9075,56951.0,56942.0,0.50229051]
[1617500589354,3.9075,56951.0,56940.0,0.50217637]
[1617500589561,3.9075,56951.0,56943.0,0.10725655]
[1617500591548,3.9075,56951.0,56949.0,0.10725655]
[1617500591949,0.1152,56951.0,56949.0,0.10725655]
[1617500592149,0.36853008,56961.0,56949.0,0.10725655]
[1617500592552,0.36853218,56960.0,56949.0,0.10725655]
[1617500593152,0.36853825,56959.0,56949.0,0.10725655]
[1617500593551,0.10725655,56950.0,56949.0,0.10725655]
[1617500595954,3.2704,56961.0,56949.0,0.10725655]
[1617500597658,3.2704,56961.0,56960.0,0.10725655]
[1617500598261,3.2704,56961.0,56947.0,1.0]
[1617500598458,3.2704,56961.0,56945.0,1.0]
[1617500598859,3.2704,56961.0,56940.0,0.09262483]
[1617500599260,3.2704,56961.0,56939.0,1.5002]
[1617500599758,3.2704,56961.0,56948.0,0.10725655]
[1617500601765,0.10725655,56949.0,56948.0,0.10725655]
[1617500601965,0.26467655,56949.0,56948.0,0.10725655]
[1617500602567,0.26467655,56949.0,56939.0,0.5002]
[1617500603768,0.15742,56949.0,56948.0,0.10725655]
[1617500604369,2.9302,56952.0,56948.0,0.10725655]
[1617500605671,0.10725655,56949.0,56948.0,0.10725655]
[1617500606873,0.25126655,56949.0,56948.0,0.10725655]
[1617500608075,0.25126655,56949.0,56939.0,0.5002]
[1617500608478,1.25126655,56949.0,56939.0,0.5002]
[1617500609880,0.10725655,56940.0,56939.0,0.5002]
[1617500611282,0.10725655,56940.0,56922.0,1.0]
[1617500611483,2.93,56923.0,56919.0,1.0]
[1617500611883,2.93,56923.0,56922.0,0.10725655]
[1617500612984,2.9289706,56923.0,56922.0,0.10725655]
[1617500615285,0.4968,56946.0,56922.0,0.10725655]
[1617500615485,0.4968,56946.0,56923.0,3.1203]
[1617500615702,0.4968,56946.0,56924.0,1.5]
[1617500615885,0.60405655,56946.0,56945.0,0.10725655]
[1617500616090,0.60405655,56946.0,56945.0,0.26360655]
[1617500616705,3.59905655,56946.0,56945.0,0.15635]
[1617500617099,3.59905655,56946.0,56918.0,4.4849]
[1617500617305,0.75911655,56946.0,56918.0,1.0]
[1617500617492,0.75911655,56946.0,56910.0,0.56315373]
[1617500617493,1.75911655,56946.0,56910.0,1.56315373]
[1617500617706,2.7662,56921.0,56910.0,1.0]
[1617500617894,2.93416,56921.0,56920.0,0.10725655]
[1617500618502,2.93416,56921.0,56907.0,1.0]
[1617500619796,2.93416,56921.0,56919.0,0.10725655]
[1617500620396,2.93416,56921.0,56907.0,1.0]
[1617500621901,2.93416,56921.0,56919.0,0.10725655]
[1617500623903,0.10725655,56920.0,56919.0,0.10725655]
[1617500626305,0.10725655,56920.0,56905.0,0.56924384]
[1617500626506,0.10725655,56920.0,56904.0,0.56930923]
[1617500626907,0.10725655,56920.0,56903.0,1.0]
[1617500627506,0.10725655,56920.0,56902.0,0.56823102]
[1617500627706,3.712,56902.0,56901.0,0.568336]
[1617500627906,3.97544655,56902.0,56901.0,0.67559255]
[1617500628109,3.97441668,56902.0,56901.0,0.10725655]
[1617500629312,3.81822668,56902.0,56901.0,0.10725655]
[1617500629709,3.71097013,56902.0,56901.0,0.10725655]
[1617500629911,0.10725655,56916.0,56901.0,0.10725655]
[1617500630111,0.10725655,56916.0,56904.0,2.8151]
[1617500631814,0.10725655,56916.0,56915.0,0.10725655]
[1617500632912,0.10725655,56916.0,56898.0,0.14417048]
[1617500633115,2.8266,56904.0,56898.0,0.14417048]
[1617500633315,2.8266,56904.0,56893.0,1.0]
[1617500633915,2.8266,56904.0,56902.0,0.10725655]
[1617500635917,0.10725655,56903.0,56902.0,0.10725655]
[1617500638821,2.8266,56904.0,56902.0,0.10725655]
[1617500639021,2.8266,56904.0,56902.0,0.23428655]
[1617500649737,2.8266,56904.0,56902.0,0.10725655]
[1617500650539,0.10725655,56906.0,56902.0,0.10725655]
[1617500650739,3.3123,56903.0,56902.0,0.10725655]
[1617500651939,3.3123,56903.0,56902.0,0.15995655]
[1617500653141,3.3123,56903.0,56902.0,0.10725655]
[1617500656846,0.10725655,56906.0,56902.0,0.10725655]
[1617500657047,0.83493637,56921.0,56902.0,1.27275655]
[1617500657248,0.4674,56921.0,56902.0,2.77275655]
[1617500657447,0.4674,56921.0,56905.0,1.0]
[1617500657651,0.4674,56921.0,56910.0,1.0]
[1617500658048,0.4674,56921.0,56911.0,0.10725655]
[1617500658249,0.4674,56921.0,56897.0,1.0]
[1617500658648,0.4674,56921.0,56893.0,1.0]
[1617500658849,2.799,56895.0,56892.0,1.0]
[1617500659050,2.93106,56895.0,56888.0,1.5]
[1617500660050,2.93106,56895.0,56894.0,0.10725655]
[1617500662053,3.03831655,56895.0,56894.0,0.10725655]
[1617500662955,3.03831655,56895.0,56879.0,1.0]
[1617500663355,0.23931655,56895.0,56876.0,1.5680277]
[1617500663555,3.7252,56877.0,56875.0,0.56878557]
[1617500663755,3.89021,56877.0,56875.0,0.56878557]
[1617500663955,3.89021,56877.0,56876.0,0.10725655]
[1617500665358,3.88917986,56877.0,56876.0,0.10725655]
[1617500666968,3.88917986,56877.0,56876.0,1.10725655]
[1617500667169,3.72416986,56877.0,56876.0,0.10725655]
[1617500667363,3.72416986,56877.0,56876.0,1.10725655]
[1617500668061,0.10725655,56881.0,56876.0,1.10725655]
[1617500669864,0.10725655,56881.0,56876.0,1.26642655]
[1617500670064,0.492,56900.0,56876.0,1.26642655]
[1617500670065,0.10725655,56887.0,56876.0,1.26642655]
[1617500670764,0.10725655,56887.0,56876.0,0.26642655]
[1617500670965,0.10725655,56887.0,56876.0,0.10725655]
[1617500671766,0.10725655,56887.0,56876.0,1.60725655]
[1617500671967,2.7569,56895.0,56883.0,1.0]
[1617500672167,2.7569,56895.0,56886.0,0.10725655]
[1617500674169,0.10725655,56887.0,56886.0,0.10725655]
[1617500678474,0.492,56900.0,56886.0,0.10725655]
[1617500678673,0.492,56900.0,56886.0,0.27652655]
[1617500680078,0.492,56900.0,56892.0,0.10725655]
[1617500682181,0.10725655,56893.0,56892.0,0.10725655]
[1617500686888,0.10725655,56893.0,56884.0,3.5157]
[1617500688189,0.492,56900.0,56892.0,3.04855655]
[1617500688390,0.492,56900.0,56892.0,4.21439655]
[1617500688791,0.492,56900.0,56893.0,1.0]
[1617500690192,0.492,56900.0,56899.0,0.10725655]
[1617500692195,0.59925655,56900.0,56899.0,0.10725655]
[1617500695600,0.492,56900.0,56899.0,0.16015655]
[1617500695800,0.492,56900.0,56899.0,0.10725655]
[1617500706421,0.492,56900.0,56899.0,0.23038655]
[1617500707824,0.36839298,56910.0,56899.0,3.06728655]
[1617500708034,0.36857661,56909.0,56900.0,1.5]
[1617500708224,0.36857661,56909.0,56908.0,0.10725655]
[1617500708429,0.36955691,56914.0,56908.0,1.60725655]
[1617500708626,0.36955691,56914.0,56908.0,2.60725655]
[1617500708836,0.36983821,56919.0,56913.0,1.0]
[1617500709023,0.36983821,56919.0,56914.0,1.5]
[1617500709225,0.82182849,56924.0,56918.0,1.0]
[1617500709429,0.36982683,56924.0,56919.0,1.5]
[1617500709625,0.36982683,56924.0,56923.0,4.7608]
[1617500709826,0.36982146,56926.0,56923.0,4.7608]
[1617500710026,0.36982146,56926.0,56923.0,3.7608]
[1617500710227,0.36982146,56926.0,56925.0,0.10725655]
[1617500710428,0.36982146,56926.0,56925.0,0.27286655]
[1617500710628,0.36981189,56927.0,56925.0,0.27286655]
[1617500711028,0.4315974,56926.0,56925.0,0.27286655]
[1617500711439,0.4315974,56926.0,56925.0,1.27286655]
[1617500711837,0.36981148,56926.0,56925.0,1.27286655]
[1617500712232,0.36978202,56929.0,56925.0,1.27286655]
[1617500712630,0.36978202,56929.0,56925.0,0.27286655]
[1617500712930,0.36978202,56929.0,56926.0,1.0]
[1617500713330,0.36978202,56929.0,56928.0,1.0]
[1617500714130,0.36977976,56930.0,56928.0,1.0]
[1617500714529,0.36977976,56930.0,56929.0,1.0]
[1617500714930,0.84587017,56934.0,56929.0,1.0]
[1617500715330,0.84587017,56934.0,56925.0,1.77286655]
[1617500715730,0.84587017,56934.0,56933.0,1.0]
[1617500715930,0.84587017,56934.0,56933.0,4.7837]
[1617500716332,0.4761,56934.0,56933.0,4.89095655]
[1617500720237,0.4761,56934.0,56933.0,1.10725655]
[1617500720437,0.4761,56934.0,56933.0,0.10725655]
[1617500721439,0.4761,56934.0,56933.0,1.10725655]
[1617500722039,0.4761,56934.0,56933.0,0.10725655]
[1617500722442,0.4761,56934.0,56933.0,1.10725655]
[1617500722840,0.4541,56934.0,56933.0,1.10725655]
[1617500730552,0.36697991,56952.0,56951.0,2.8372]
[1617500730752,0.36697991,56952.0,56951.0,3.00401]
[1617500730952,0.57062978,56964.0,56951.0,3.00401]
[1617500730953,0.36697281,56956.0,56951.0,3.00401]
[1617500731353,2.7249,56968.0,56951.0,3.00401]
[1617500731354,0.36695828,56958.0,56951.0,3.00401]
[1617500731753,0.36696163,56957.0,56951.0,3.00401]
[1617500732353,0.36696163,56957.0,56956.0,0.10725655]
[1617500732756,0.36696163,56957.0,56951.0,3.00401]
[1617500732953,0.36696163,56957.0,56944.0,1.0]
[1617500733154,1.36696582,56955.0,56929.0,3.4813]
[1617500733753,0.3669876,56952.0,56929.0,3.4813]
[1617500734156,0.36700115,56950.0,56929.0,3.4813]
[1617500734355,0.36700115,56950.0,56939.0,0.10725655]
[1617500734555,0.36699855,56949.0,56939.0,0.10725655]
[1617500734954,0.06177494,56949.0,56939.0,0.10725655]
[1617500735358,0.56699714,56950.0,56939.0,0.10725655]
[1617500735856,0.36700059,56949.0,56939.0,0.10725655]
[1617500736258,0.42877671,56949.0,56939.0,0.10725655]
[1617500736456,0.10725655,56940.0,56939.0,0.10725655]
[1617500736657,0.23242655,56940.0,56939.0,0.10725655]
[1617500739259,0.10725655,56940.0,56939.0,0.10725655]
[1617500740960,0.10725655,56940.0,56939.0,1.10725655]
[1617500741360,0.10725655,56940.0,56939.0,0.10725655]
[1617500742061,0.10725655,56940.0,56939.0,0.26939655]
[1617500745563,0.10725655,56940.0,56939.0,1.26939655]
[1617500746163,0.3674054,56951.0,56939.0,1.26939655]
[1617500746367,0.47466195,56951.0,56950.0,0.10725655]
[1617500746563,0.10725655,56951.0,56950.0,0.10725655]
[1617500747963,0.10725655,56951.0,56950.0,2.81595655]
[1617500748163,0.36738247,56954.0,56950.0,2.81595655]
[1617500748366,0.36736394,56957.0,56950.0,2.81595655]
[1617500748665,0.36736394,56957.0,56951.0,0.053]
[1617500748865,0.36736141,56959.0,56951.0,0.16901]
[1617500749065,0.36736141,56959.0,56951.0,0.11601]
[1617500749268,0.36736141,56959.0,56952.0,1.0]
[1617500750369,0.36736141,56959.0,56958.0,0.10725655]
[1617500750569,0.36735319,56960.0,56958.0,0.10725655]
[1617500750973,0.36735319,56960.0,56959.0,4.1109]
[1617500751369,0.36697133,56965.0,56959.0,4.1109]
[1617500751769,0.84585788,56966.0,56962.0,1.0]
[1617500752169,0.36747653,56964.0,56962.0,1.0]
[1617500752569,0.84634107,56966.0,56962.0,1.0]
[1617500753169,0.4789,56966.0,56962.0,1.0]
[1617500753371,0.4789,56966.0,56964.0,1.0]
[1617500753574,0.4789,56966.0,56964.0,1.15665]
[1617500753772,0.4789,56966.0,56965.0,1.0]
[1617500754173,0.4556,56966.0,56965.0,1.0]
[1617500754374,0.36735743,56979.0,56965.0,1.10725655]
[1617500754773,0.36735743,56979.0,56972.0,1.0]
[1617500754974,0.10725655,56980.0,56972.0,1.0]
[1617500755374,0.10725655,56980.0,56974.0,1.0]
[1617500755575,0.10725655,56980.0,56973.0,1.0]
[1617500755974,0.10725655,56980.0,56974.0,1.0]
[1617500756176,0.10725655,56980.0,56976.0,1.0]
[1617500756375,0.10725655,56980.0,56979.0,0.10725655]
[1617500756574,0.10725655,56980.0,56979.0,1.10725655]
[1617500756775,0.10725655,56980.0,56979.0,0.10725655]
[1617500759379,0.00725655,56980.0,56979.0,0.10725655]
[1617500761579,0.11694655,56980.0,56979.0,0.10725655]
[1617500761980,0.48430617,56980.0,56979.0,0.10725655]
[1617500762982,0.11694655,56980.0,56979.0,0.10725655]
[1617500764188,3.73634655,56980.0,56959.0,1.0]
[1617500764402,3.73634655,56980.0,56952.0,1.0]
[1617500764584,1.0,56977.0,56969.0,0.10725655]
[1617500764785,0.2,56976.0,56969.0,0.10725655]
[1617500765185,1.42830597,56975.0,56969.0,0.10725655]
[1617500765586,1.42830912,56974.0,56969.0,0.10725655]
[1617500766086,1.36655869,56974.0,56951.0,0.4751]
[1617500766285,1.36655869,56974.0,56952.0,0.0533]
[1617500766488,1.36655869,56974.0,56960.0,0.10725655]
[1617500766685,1.0,56973.0,56960.0,0.10725655]
[1617500767087,1.0,56972.0,56960.0,0.10725655]
[1617500767287,0.36655869,56974.0,56960.0,0.10725655]
[1617500767487,0.36654505,56975.0,56961.0,1.5]
[1617500767686,0.36654505,56975.0,56974.0,3.0724]
[1617500767887,0.36762371,56979.0,56974.0,5.73002]
[1617500768289,0.44925814,56990.0,56978.0,1.0]
[1617500768490,0.44925814,56990.0,56989.0,0.10725655]
[1617500768690,0.4588,56994.0,56989.0,0.23036655]
[1617500769290,0.44923443,56992.0,56989.0,0.23036655]
[1617500769891,0.90803125,56994.0,56989.0,0.23036655]
[1617500770692,0.4588,56994.0,56989.0,0.23036655]
[1617500776699,0.56605655,56994.0,56989.0,0.23036655]
[1617500777698,0.56605655,56994.0,56989.0,0.10725655]
[1617500779001,0.73700655,56994.0,56989.0,0.10725655]
[1617500782107,0.56605655,56994.0,56989.0,0.10725655]
[1617500783109,2.7521,56990.0,56989.0,0.10725655]
[1617500783309,5.2521,56990.0,56957.0,0.4508]
[1617500783510,2.5,56990.0,56957.0,0.082]
[1617500783710,2.7527,56976.0,56957.0,0.082]
[1617500783910,2.90331,56976.0,56948.0,1.0]
[1617500784111,0.2,56975.0,56948.0,1.0]
[1617500784712,0.2,56975.0,56964.0,0.10725655]
[1617500785814,0.2,56975.0,56966.0,3.2652]
[1617500786614,0.10725655,56967.0,56966.0,3.2652]
[1617500787816,0.10725655,56967.0,56964.0,0.10725655]
[1617500788017,4.07205655,56967.0,56964.0,0.10725655]
[1617500788217,4.07205655,56967.0,56939.0,1.0]
[1617500788218,5.57205655,56967.0,56939.0,1.0]
[1617500788418,1.0,56965.0,56933.0,1.0]
[1617500788617,1.0,56965.0,56944.0,0.10725655]
[1617500788618,2.9652,56957.0,56944.0,0.10725655]
[1617500788817,3.09415,56957.0,56944.0,0.10725655]
[1617500789018,1.2,56956.0,56944.0,0.10725655]
[1617500789616,1.0,56956.0,56944.0,0.10725655]
[1617500790317,4.09415,56957.0,56944.0,0.10725655]
[1617500790718,0.10725655,56945.0,56944.0,0.10725655]
[1617500791819,0.10725655,56945.0,56944.0,1.60725655]
[1617500792045,1.0,56960.0,56944.0,5.14225655]
[1617500792237,0.44834233,56969.0,56944.0,6.28198655]
[1617500792435,0.44834233,56969.0,56959.0,1.0]
[1617500792640,0.44824416,56979.0,56968.0,0.10725655]
[1617500792833,0.4284,56972.0,56968.0,1.10725655]
[1617500793021,0.3772,56972.0,56971.0,1.0]
[1617500793221,0.3772,56972.0,56971.0,1.14218]
[1617500793622,0.3772,56972.0,56971.0,2.64218]
[1617500801129,0.36792347,56993.0,56971.0,2.64218]
[1617500801329,0.3679249,56992.0,56988.0,3.539]
[1617500801730,0.36792531,56991.0,56988.0,3.539]
[1617500802130,0.36792487,56993.0,56988.0,3.539]
[1617500802331,0.36792487,56993.0,56988.0,3.69742]
[1617500802731,0.36792487,56993.0,56992.0,0.10725655]
[1617500804534,3.99902487,56993.0,56985.0,1.0]
[1617500804737,0.10725655,56986.0,56985.0,0.10725655]
[1617500804936,3.6311,56977.0,56961.0,1.0]
[1617500805150,3.74198,56977.0,56961.0,1.0]
[1617500805356,0.11088,56977.0,56976.0,2.9973]
[1617500805561,0.11088,56977.0,56976.0,3.9973]
[1617500805752,0.11088,56977.0,56976.0,4.16487]
[1617500806136,0.36795606,56985.0,56976.0,4.16487]
[1617500806337,0.44970137,56990.0,56976.0,4.16487]
[1617500806338,0.36794648,56990.0,56976.0,4.16487]
[1617500806537,0.36794648,56990.0,56981.0,1.0]
[1617500806737,0.44968965,56994.0,56989.0,0.10725655]
[1617500806938,0.44968965,56994.0,56989.0,0.27373655]
[1617500807138,0.36805586,56990.0,56989.0,0.27373655]
[1617500807548,0.36805586,56990.0,56989.0,1.27373655]
[1617500807937,0.36804143,56992.0,56989.0,1.27373655]
[1617500808337,0.81784719,56996.0,56991.0,3.1874]
[1617500808537,0.36804149,56996.0,56991.0,3.1874]
[1617500808738,0.36804149,56996.0,56995.0,0.10725655]
[1617500808938,0.36804149,56996.0,56995.0,1.10725655]
[1617500809339,0.36804149,56996.0,56995.0,0.10725655]
[1617500810942,0.36804149,56996.0,56995.0,1.10725655]
[1617500811143,0.43207724,57005.0,56995.0,1.10725655]
[1617500811144,0.36803497,56997.0,56995.0,1.10725655]
[1617500811543,0.88198429,56996.0,56995.0,0.10725655]
[1617500811743,0.88198429,56996.0,56995.0,3.16205655]
[1617500812143,0.82026073,56996.0,56995.0,4.16205655]
[1617500812544,0.4308492,56996.0,56995.0,4.16205655]